{"text_format":"1","workbook":"xlsx","n_sheets":3,"sheets":["Hinweise","Buchungen","Kontenplan"],"not_rendered":{"charts":0,"images":26,"macros":1,"external_links":0,"defined_names":0,"comments":1,"pivot_tables":0},"unopened":[],"bounds":{"document_bytes":16777216,"sheet_cells":100000,"rows_first":2000,"rows_last":500,"rows_between":2000,"halvings":0,"cell_chars":16384,"cell_head_chars":4096},"cells_cut":0,"cells_raw":0,"read":"whole","date_system":"1900"}

{"sheet":"Hinweise","index":0,"n_rows":27,"n_cols":1,"rows_kept":27,"cut":false,"hidden":false,"merged":[[0,0,0,7],[2,0,2,1]]}
["Zeitliche Abgrenzung 2 (Aktive und Passive Rechnungsabgrenzung)"]
[]
["Voraussetzungen"]
["Um den Geschäftsgang buchen zu können müssen Sie Kenntnisse über die folgenden Lehrninhalte haben:"]
["Erfolgskonten, Umsatzsteuer"]
["Zeitliche Abgrenzungen"]
["Aktive Rechnungsabgrenzung"]
["Passive Rechnungsabgrenzung"]
[]
["Vorgehensweise"]
["1. Wählen Sie die Tabelle \"Buchungen\"."]
[]
["2. Buchen Sie die Geschäftsvorfälle"]
["    entweder durch Direkteingabe in die entsprechenden Felder des Grundbuchs (Kontennummern und Beträge)"]
["    oder durch Aufruf von Buchungsfenstern. (Klicken Sie dazu jeweils auf die Schaltfläche \"Buchung\" und beenden"]
["    Sie die Eingabe  mit \"OK\".)"]
["    Die Kontennummern sind vierstellig anzugeben. (siehe Kontenplan). Bei zusammengesetzten Buchungssätzen"]
["    sind die Buchungen nach der Höhe der Beträge geordnet vorzunehmen. "]
[]
["3. Wenn Aufwendungen oder Erträge auf zwei Geschäftsjahre zu verteilen sind, können Sie die erforderlichen"]
["    Berechnungen in den grau hinterlegten Feldern durchführen."]
[]
["4. Sie können sich den Kontenplan mit Kontennummern jederzeit durch Klick auf den"]
["    entsprechenden Button anzeigen lassen."]
[]
["5. Die Richtigkeit Ihrer Buchungen wird bestätigt oder Sie werden auf"]
["    Fehler hingewiesen. (Ohne Buchung werden Fehler angezeigt.)"]

{"sheet":"Buchungen","index":1,"n_rows":153,"n_cols":7,"rows_kept":153,"cut":false,"hidden":false,"merged":[[106,0,107,0],[106,5,106,6],[107,5,107,6],[108,5,108,6],[104,0,105,0],[104,1,105,6],[97,0,98,0],[97,1,99,2],[97,5,97,6],[98,5,98,6],[99,5,99,6],[85,1,87,2],[85,5,85,6],[87,5,87,6],[86,5,86,6],[89,0,90,0],[101,0,102,0],[91,0,92,0],[68,3,69,3],[74,4,75,4],[74,5,75,5],[74,6,75,6],[76,3,78,3],[76,4,78,4],[80,6,81,6],[68,5,69,5],[68,6,69,6],[68,4,69,4],[70,5,70,6],[71,5,71,6],[72,5,72,6],[76,5,76,6],[78,5,78,6],[80,5,81,5],[68,2,69,2],[62,1,63,6],[64,1,66,2],[53,4,54,4],[49,1,51,2],[55,1,57,2],[49,3,51,3],[55,3,56,3],[64,5,64,6],[65,5,65,6],[59,0,60,0],[110,0,111,0],[62,0,63,0],[64,0,65,0],[68,0,69,0],[68,1,69,1],[80,0,81,0],[83,0,84,0],[83,1,84,6],[85,0,86,0],[53,1,54,1],[53,2,54,2],[53,3,54,3],[53,5,54,5],[53,6,54,6],[55,0,56,0],[55,5,55,6],[56,5,56,6],[5,0,6,0],[7,1,9,2],[47,0,48,0],[47,1,48,6],[49,0,50,0],[49,5,49,6],[50,5,50,6],[112,0,113,0],[112,1,114,2],[116,1,117,1],[116,2,117,2],[1,0,1,4],[2,0,2,4],[26,0,27,0],[11,0,12,0],[11,1,12,1],[11,2,12,2],[119,0,120,0],[119,1,120,6],[121,0,122,0],[121,5,121,6],[122,5,122,6],[116,0,117,0],[142,0,143,0],[142,3,144,3],[142,5,142,6],[143,4,144,4],[143,5,143,6],[144,5,144,6],[152,5,153,5],[152,6,153,6],[142,1,144,2],[123,5,123,6],[121,1,123,2],[121,3,123,3],[152,1,153,1],[152,2,153,2],[152,3,153,3],[152,4,153,4],[127,3,129,3],[125,0,126,0],[131,0,132,0],[131,1,132,1],[131,2,132,2],[127,1,129,2],[127,0,128,0],[129,5,129,6],[131,4,132,4],[131,5,132,5],[131,6,132,6],[127,4,129,4],[127,5,127,6],[128,5,128,6],[136,0,137,0],[136,1,138,2],[136,3,138,3],[136,5,136,6],[137,5,137,6],[131,3,132,3],[138,5,138,6],[148,0,149,0],[148,1,150,2],[148,5,148,6],[149,5,149,6],[150,5,150,6],[148,3,150,3],[148,4,150,4],[28,3,30,3],[40,1,42,2],[17,5,18,5],[17,6,18,6],[19,4,21,4],[28,1,30,2],[32,4,33,4],[32,5,33,5],[5,1,6,6],[7,0,8,0],[13,5,13,6],[14,5,14,6],[8,5,8,6],[9,5,9,6],[11,4,12,4],[11,5,12,5],[11,6,12,6],[14,4,15,4],[152,0,153,0],[95,0,96,0],[140,4,141,4],[140,2,141,2],[140,3,141,3],[134,0,135,0],[134,1,135,6],[95,4,96,4],[95,5,96,5],[95,6,96,6],[17,0,18,0],[17,1,18,1],[17,2,18,2],[26,1,27,6],[19,5,19,6],[20,5,20,6],[21,5,21,6],[23,0,24,0],[23,1,24,1],[17,4,18,4],[35,5,35,6],[36,5,36,6],[35,4,36,4],[38,4,39,4],[32,6,33,6],[28,4,30,4],[28,5,28,6],[29,5,29,6],[30,5,30,6],[44,6,45,6],[44,0,45,0],[44,1,45,1],[44,2,45,2],[44,3,45,3],[40,0,41,0],[40,4,42,4],[40,5,40,6],[41,5,41,6],[42,5,42,6],[19,0,20,0],[19,1,21,2],[19,3,21,3],[13,0,14,0],[17,3,18,3],[32,0,33,0],[32,1,33,1],[32,2,33,2],[32,3,33,3],[28,0,29,0],[23,2,24,2],[23,3,24,3],[23,4,24,4],[23,5,24,5],[7,3,9,3],[13,1,15,2],[13,3,15,3],[15,5,15,6],[7,5,7,6],[11,3,12,3],[23,6,24,6],[40,3,42,3],[34,0,35,0],[34,1,36,2],[34,3,36,3],[38,0,39,0],[38,1,39,1],[38,2,39,2],[38,3,39,3],[34,5,34,6],[38,6,39,6],[59,1,60,1],[59,2,60,2],[59,3,60,3],[59,4,60,4],[59,5,60,5],[59,6,60,6],[49,4,51,4],[55,4,57,4],[44,4,45,4],[80,1,81,1],[70,0,71,0],[70,1,72,2],[70,3,72,3],[71,4,72,4],[38,5,39,5],[44,5,45,5],[51,5,51,6],[57,5,57,6],[53,0,54,0],[74,0,75,0],[74,1,75,1],[74,2,75,2],[74,3,75,3],[76,0,77,0],[76,1,78,2],[91,5,91,6],[92,4,93,4],[92,5,92,6],[93,5,93,6],[64,3,66,3],[80,3,81,3],[80,4,81,4],[66,5,66,6],[65,4,66,4],[77,5,77,6],[101,1,102,1],[101,2,102,2],[101,3,102,3],[101,4,102,4],[80,2,81,2],[95,1,96,1],[95,2,96,2],[95,3,96,3],[91,1,93,2],[91,3,93,3],[116,3,117,3],[116,4,117,4],[101,5,102,5],[101,6,102,6],[97,3,99,3],[98,4,99,4],[140,0,141,0],[140,1,141,1],[116,5,117,5],[116,6,117,6],[106,1,108,2],[112,3,114,3],[112,4,114,4],[112,5,112,6],[113,5,113,6],[114,5,114,6],[146,4,147,4],[146,5,147,5],[146,6,147,6],[136,4,138,4],[146,0,147,0],[146,1,147,1],[146,2,147,2],[146,3,147,3],[140,5,141,5],[140,6,141,6]]}
[]
["Übungen zur zeitlichen Agrenzung"]
["2. Aktive und Passive Rechnungsabgrenzung"]
[null,null,null,null,null,null,0.19]
[]
["Geschäfts- vorfall 1","Die vierteljährlich zu zahlende Lagerraummiete wir von uns am vertragsgemäß am 1. Dez. für drei Monate im voraus durch Banküberweisung gezahlt, 1.800,00 €."]
[]
["01.12.","Buchung bei Zahlungsausgang",null,"Zahlungs- ausgang",null,{"$f":"IF(AND(B12=\"6700\",E12=\"2800\"),\"Die Konten sind richtig!\",\"Mindestens ein Konto ist falsch!\")","v":"Mindestens ein Konto ist falsch!"}]
[null,null,null,null,1800,{"$f":"IF(AND(D12=E9,G12=E9),\"Die Beträge sind richtig!\",\"Mindestens ein Betrag ist falsch!\")","v":"Mindestens ein Betrag ist falsch!"}]
[null,null,null,null,null,{"$f":"IF(AND(F8=\"Die Konten sind richtig!\",F9=\"Die Beträge sind richtig!\"),\"Alles richtig!\",\"Es sind noch Fehler vorhanden!\")","v":"Es sind noch Fehler vorhanden!"}]
[1,"Soll","Konto","€","Haben","Konto","€"]
["Buchungssatz","",{"$f":"IF(B12=\"\",\"\",VLOOKUP(B12,Kontenplan!$A$4:$B$20,2))","v":""},null,"",{"$f":"IF(E12=\"\",\"\",VLOOKUP(E12,Kontenplan!$A$4:$B$20,2))","v":""}]
[]
["31.12.","Buchung zum Jahresabschluss",null,"Rechnungs-abgrenzung","Berechnungen",{"$f":"IF(AND(B18=\"2900\",E18=\"6700\"),\"Die Konten sind richtig!\",\"Mindestens ein Konto ist falsch!\")","v":"Mindestens ein Konto ist falsch!"}]
[null,null,null,null,null,{"$f":"IF(AND(D18=1200,G18=1200),\"Die Beträge sind richtig!\",\"Mindestens ein Betrag ist falsch!\")","v":"Mindestens ein Betrag ist falsch!"}]
[null,null,null,null,null,{"$f":"IF(AND(F14=\"Die Konten sind richtig!\",F15=\"Die Beträge sind richtig!\"),\"Alles richtig!\",\"Es sind noch Fehler vorhanden!\")","v":"Es sind noch Fehler vorhanden!"}]
[2,"Soll","Konto","€","Haben","Konto","€"]
["Buchungssatz","",{"$f":"IF(B18=\"\",\"\",VLOOKUP(B18,Kontenplan!$A$4:$B$20,2))","v":""},null,"",{"$f":"IF(E18=\"\",\"\",VLOOKUP(E18,Kontenplan!$A$4:$B$20,2))","v":""}]
[]
["01.01.","Buchung im neuen Geschäftsjahr",null,"Anteil für das neue Geschäftsjahr",null,{"$f":"IF(AND(B24=\"6700\",E24=\"2900\"),\"Die Konten sind richtig!\",\"Mindestens ein Konto ist falsch!\")","v":"Mindestens ein Konto ist falsch!"}]
[null,null,null,null,null,{"$f":"IF(AND(D24=1200,G24=1200),\"Die Beträge sind richtig!\",\"Mindestens ein Betrag ist falsch!\")","v":"Mindestens ein Betrag ist falsch!"}]
[null,null,null,null,null,{"$f":"IF(AND(F20=\"Die Konten sind richtig!\",F21=\"Die Beträge sind richtig!\"),\"Alles richtig!\",\"Es sind noch Fehler vorhanden!\")","v":"Es sind noch Fehler vorhanden!"}]
[3,"Soll","Konto","€","Haben","Konto","€"]
["Buchungssatz","",{"$f":"IF(B24=\"\",\"\",VLOOKUP(B24,Kontenplan!$A$4:$B$20,2))","v":""},null,"",{"$f":"IF(E24=\"\",\"\",VLOOKUP(E24,Kontenplan!$A$4:$B$20,2))","v":""}]
[]
[]
["Geschäfts- vorfall 2","Wir erhalten am 1. November die Miete für eine von uns nicht genutzte Werkstatt für drei Monate im voraus bar, 1.050,00 €"]
[]
["01.11.","Buchung bei Zahlungseingang",null,"Zahlungs- eingang",1050,{"$f":"IF(AND(B33=\"2880\",E33=\"5400\"),\"Die Konten sind richtig!\",\"Mindestens ein Konto ist falsch!\")","v":"Mindestens ein Konto ist falsch!"}]
[null,null,null,null,null,{"$f":"IF(AND(D33=E29,G33=E29),\"Die Beträge sind richtig!\",\"Mindestens ein Betrag ist falsch!\")","v":"Mindestens ein Betrag ist falsch!"}]
[null,null,null,null,null,{"$f":"IF(AND(F29=\"Die Konten sind richtig!\",F30=\"Die Beträge sind richtig!\"),\"Alles richtig!\",\"Es sind noch Fehler vorhanden!\")","v":"Es sind noch Fehler vorhanden!"}]
[4,"Soll","Konto","€","Haben","Konto","€"]
["Buchungssatz","",{"$f":"IF(B33=\"\",\"\",VLOOKUP(B33,Kontenplan!$A$4:$B$20,2))","v":""},null,"",{"$f":"IF(E33=\"\",\"\",VLOOKUP(E33,Kontenplan!$A$4:$B$20,2))","v":""}]
[]
["31.12.","Buchung zum Jahresabschluss",null,"Rechnungs-abgrenzung","Berechnungen",{"$f":"IF(AND(B39=\"5400\",E39=\"4900\"),\"Die Konten sind richtig!\",\"Mindestens ein Konto ist falsch!\")","v":"Mindestens ein Konto ist falsch!"}]
[null,null,null,null,null,{"$f":"IF(AND(D39=350,G39=350),\"Die Beträge sind richtig!\",\"Mindestens ein Betrag ist falsch!\")","v":"Mindestens ein Betrag ist falsch!"}]
[null,null,null,null,null,{"$f":"IF(AND(F35=\"Die Konten sind richtig!\",F36=\"Die Beträge sind richtig!\"),\"Alles richtig!\",\"Es sind noch Fehler vorhanden!\")","v":"Es sind noch Fehler vorhanden!"}]
[5,"Soll","Konto","€","Haben","Konto","€"]
["Buchungssatz","",{"$f":"IF(B39=\"\",\"\",VLOOKUP(B39,Kontenplan!$A$4:$B$20,2))","v":""},null,"",{"$f":"IF(E39=\"\",\"\",VLOOKUP(E39,Kontenplan!$A$4:$B$20,2))","v":""}]
[]
["01.01.","Buchung im neuen Geschäftsjahr",null,"Anteil für das neue Geschäftsjahr",null,{"$f":"IF(AND(B45=\"4900\",E45=\"5400\"),\"Die Konten sind richtig!\",\"Mindestens ein Konto ist falsch!\")","v":"Mindestens ein Konto ist falsch!"}]
[null,null,null,null,null,{"$f":"IF(AND(D45=350,G45=350),\"Die Beträge sind richtig!\",\"Mindestens ein Betrag ist falsch!\")","v":"Mindestens ein Betrag ist falsch!"}]
[null,null,null,null,null,{"$f":"IF(AND(F41=\"Die Konten sind richtig!\",F42=\"Die Beträge sind richtig!\"),\"Alles richtig!\",\"Es sind noch Fehler vorhanden!\")","v":"Es sind noch Fehler vorhanden!"}]
[6,"Soll","Konto","€","Haben","Konto","€"]
["Buchungssatz","",{"$f":"IF(B45=\"\",\"\",VLOOKUP(B45,Kontenplan!$A$4:$B$20,2))","v":""},null,"",{"$f":"IF(E45=\"\",\"\",VLOOKUP(E45,Kontenplan!$A$4:$B$20,2))","v":""}]
[]
[]
["Geschäfts- vorfall 3","Unser Handeslvertreter erhält die Provision für Januar bereits am 24.12. durch Banküberweisung, 2300,00 €. Die Abgrenzung wird direkt am 24.12. vorgenommen."]
[]
["24.12.","Buchung bei Überweisung der Provision",null,null,2300,{"$f":"IF(AND(B54=\"2900\",E54=\"2800\"),\"Die Konten sind richtig!\",\"Mindestens ein Konto ist falsch!\")","v":"Mindestens ein Konto ist falsch!"}]
[null,null,null,null,null,{"$f":"IF(AND(D54=2300,G54=2300),\"Die Beträge sind richtig!\",\"Mindestens ein Betrag ist falsch!\")","v":"Mindestens ein Betrag ist falsch!"}]
[null,null,null,null,null,{"$f":"IF(AND(F50=\"Die Konten sind richtig!\",F51=\"Die Beträge sind richtig!\"),\"Alles richtig!\",\"Es sind noch Fehler vorhanden!\")","v":"Es sind noch Fehler vorhanden!"}]
[7,"Soll","Konto","€","Haben","Konto","€"]
["Buchungssatz","",{"$f":"IF(B54=\"\",\"\",VLOOKUP(B54,Kontenplan!$A$4:$B$20,2))","v":""},null,"",{"$f":"IF(E54=\"\",\"\",VLOOKUP(E54,Kontenplan!$A$4:$B$20,2))","v":""}]
[]
["01.01.","Buchung im neuen Geschäftsjahr",null,null,2300,{"$f":"IF(AND(B60=\"6150\",E60=\"2900\"),\"Die Konten sind richtig!\",\"Mindestens ein Konto ist falsch!\")","v":"Mindestens ein Konto ist falsch!"}]
[null,null,null,null,null,{"$f":"IF(AND(D60=2300,G60=2300),\"Die Beträge sind richtig!\",\"Mindestens ein Betrag ist falsch!\")","v":"Mindestens ein Betrag ist falsch!"}]
[null,null,null,null,null,{"$f":"IF(AND(F56=\"Die Konten sind richtig!\",F57=\"Die Beträge sind richtig!\"),\"Alles richtig!\",\"Es sind noch Fehler vorhanden!\")","v":"Es sind noch Fehler vorhanden!"}]
[8,"Soll","Konto","€","Haben","Konto","€"]
["Buchungssatz","",{"$f":"IF(B60=\"\",\"\",VLOOKUP(B60,Kontenplan!$A$4:$B$20,2))","v":""},null,"",{"$f":"IF(E60=\"\",\"\",VLOOKUP(E60,Kontenplan!$A$4:$B$20,2))","v":""}]
[]
[]
["Geschäfts- vorfall 4","Ein Darlehensnehmer überweist Vierteljahreszinsen für Dezember bis Februar im voraus am 28.11. Darlehenssumme: 15.000,00 €, Zinssatz: 4,5% "]
[]
["28.11.","Banküberweisung der Zinsen im alten Geschäftsjahr",null,"Gesamtzinsen","Berechnungen",{"$f":"IF(AND(B69=\"2800\",E69=\"5710\"),\"Die Konten sind richtig!\",\"Mindestens ein Konto ist falsch!\")","v":"Mindestens ein Konto ist falsch!"}]
[null,null,null,null,null,{"$f":"IF(AND(D69=168.75,G69=168.75),\"Die Beträge sind richtig!\",\"Mindestens ein Betrag ist falsch!\")","v":"Mindestens ein Betrag ist falsch!"}]
[null,null,null,null,null,{"$f":"IF(AND(F65=\"Die Konten sind richtig!\",F66=\"Die Beträge sind richtig!\"),\"Alles richtig!\",\"Es sind noch Fehler vorhanden!\")","v":"Es sind noch Fehler vorhanden!"}]
[9,"Soll","Konto","€","Haben","Konto","€"]
["Buchungssatz","",{"$f":"IF(B69=\"\",\"\",VLOOKUP(B69,Kontenplan!$A$4:$B$20,2))","v":""},null,"",{"$f":"IF(E69=\"\",\"\",VLOOKUP(E69,Kontenplan!$A$4:$B$20,2))","v":""}]
[]
["31.12.","Buchung zum Jahresabschluss",null,"Zinsanteil für das neue Geschäftsjahr","Berechnungen",{"$f":"IF(AND(B75=\"5710\",E75=\"4900\"),\"Die Konten sind richtig!\",\"Mindestens ein Konto ist falsch!\")","v":"Mindestens ein Konto ist falsch!"}]
[null,null,null,null,null,{"$f":"IF(AND(D75=112.5,G75=112.5),\"Die Beträge sind richtig!\",\"Mindestens ein Betrag ist falsch!\")","v":"Mindestens ein Betrag ist falsch!"}]
[null,null,null,null,null,{"$f":"IF(AND(F71=\"Die Konten sind richtig!\",F72=\"Die Beträge sind richtig!\"),\"Alles richtig!\",\"Es sind noch Fehler vorhanden!\")","v":"Es sind noch Fehler vorhanden!"}]
[10,"Soll","Konto","€","Haben","Konto","€"]
["Buchungssatz","",{"$f":"IF(B75=\"\",\"\",VLOOKUP(B75,Kontenplan!$A$4:$B$20,2))","v":""},null,"",{"$f":"IF(E75=\"\",\"\",VLOOKUP(E75,Kontenplan!$A$4:$B$20,2))","v":""}]
[]
["01.01.","Buchung im neuen Geschäftsjahr",null,"Zinsanteil für das neue Geschäftsjahr",null,{"$f":"IF(AND(B81=\"4900\",E81=\"5710\"),\"Die Konten sind richtig!\",\"Mindestens ein Konto ist falsch!\")","v":"Mindestens ein Konto ist falsch!"}]
[null,null,null,null,null,{"$f":"IF(AND(D81=112.5,G81=112.5),\"Die Beträge sind richtig!\",\"Mindestens ein Betrag ist falsch!\")","v":"Mindestens ein Betrag ist falsch!"}]
[null,null,null,null,null,{"$f":"IF(AND(F77=\"Die Konten sind richtig!\",F78=\"Die Beträge sind richtig!\"),\"Alles richtig!\",\"Es sind noch Fehler vorhanden!\")","v":"Es sind noch Fehler vorhanden!"}]
[11,"Soll","Konto","€","Haben","Konto","€"]
["Buchungssatz","",{"$f":"IF(B81=\"\",\"\",VLOOKUP(B81,Kontenplan!$A$4:$B$20,2))","v":""},null,"",{"$f":"IF(E81=\"\",\"\",VLOOKUP(E81,Kontenplan!$A$4:$B$20,2))","v":""}]
[]
[]
["Geschäfts- vorfall 5","Die Wartungskosten für Büromaschinen werden von uns jährlich im voraus durch Banküberweisung beglichen, brutto  2.142,00 €. Rechnungs- und Zahlungsdatum 01.09. (Die Vorsteuer ist bei Rechnungseingang zu erfassen.)"]
[]
["01.09.","Banküberweisung der Wartungskosten",null,"netto",null,{"$f":"IF(AND(B90=\"6160\",B91=\"2600\",E90=\"2800\"),\"Die Konten sind richtig!\",\"Mindestens ein Konto ist falsch!\")","v":"Mindestens ein Konto ist falsch!"}]
[null,null,null,"UmSt",null,{"$f":"IF(AND(D90=1800,D91=342,G90=2142),\"Die Beträge sind richtig!\",\"Mindestens ein Betrag ist falsch!\")","v":"Mindestens ein Betrag ist falsch!"}]
[null,null,null,"brutto",2142,{"$f":"IF(AND(F86=\"Die Konten sind richtig!\",F87=\"Die Beträge sind richtig!\"),\"Alles richtig!\",\"Es sind noch Fehler vorhanden!\")","v":"Es sind noch Fehler vorhanden!"}]
[12,"Soll","Konto","€","Haben","Konto","€"]
["Buchungssatz","",{"$f":"IF(B90=\"\",\"\",VLOOKUP(B90,Kontenplan!$A$4:$B$20,2))","v":""},null,"",{"$f":"IF(E90=\"\",\"\",VLOOKUP(E90,Kontenplan!$A$4:$B$20,2))","v":""}]
[null,"",{"$f":"IF(B91=\"\",\"\",VLOOKUP(B91,Kontenplan!A4:B20,2))","v":""}]
["31.12.","Buchung zum Jahresabschluss",null,"Wartungsanteil für das neue Geschäftsjahr","Berechnungen",{"$f":"IF(AND(B96=\"2900\",E96=\"6160\"),\"Die Konten sind richtig!\",\"Mindestens ein Konto ist falsch!\")","v":"Mindestens ein Konto ist falsch!"}]
[null,null,null,null,null,{"$f":"IF(AND(D96=1200,G96=1200),\"Die Beträge sind richtig!\",\"Mindestens ein Betrag ist falsch!\")","v":"Mindestens ein Betrag ist falsch!"}]
[null,null,null,null,null,{"$f":"IF(AND(F92=\"Die Konten sind richtig!\",F93=\"Die Beträge sind richtig!\"),\"Alles richtig!\",\"Es sind noch Fehler vorhanden!\")","v":"Es sind noch Fehler vorhanden!"}]
[13,"Soll","Konto","€","Haben","Konto","€"]
["Buchungssatz","",{"$f":"IF(B96=\"\",\"\",VLOOKUP(B96,Kontenplan!$A$4:$B$20,2))","v":""},null,"",{"$f":"IF(E96=\"\",\"\",VLOOKUP(E96,Kontenplan!$A$4:$B$20,2))","v":""}]
[]
["01.01.","Buchung im neuen Geschäftsjahr",null,"Anteil für das neue Geschäftsjahr","Berechnungen",{"$f":"IF(AND(B102=\"6160\",E102=\"2900\"),\"Die Konten sind richtig!\",\"Mindestens ein Konto ist falsch!\")","v":"Mindestens ein Konto ist falsch!"}]
[null,null,null,null,null,{"$f":"IF(AND(D102=1200,G102=1200),\"Die Beträge sind richtig!\",\"Mindestens ein Betrag ist falsch!\")","v":"Mindestens ein Betrag ist falsch!"}]
[null,null,null,null,null,{"$f":"IF(AND(F98=\"Die Konten sind richtig!\",F99=\"Die Beträge sind richtig!\"),\"Alles richtig!\",\"Es sind noch Fehler vorhanden!\")","v":"Es sind noch Fehler vorhanden!"}]
[14,"Soll","Konto","€","Haben","Konto","€"]
["Buchungssatz","",{"$f":"IF(B102=\"\",\"\",VLOOKUP(B102,Kontenplan!$A$4:$B$20,2))","v":""},null,"",{"$f":"IF(E102=\"\",\"\",VLOOKUP(E102,Kontenplan!$A$4:$B$20,2))","v":""}]
[]
[]
["Geschäfts- vorfall 6","Die Kraftfahrzeugsteuer wird von uns am 1. Dezember für ein Jahr im voraus (Dezember bis November) mit der Bank überwiesen, 720,00 €. Die Abgrenzung erfolgt bei der Überweisung."]
[]
["01.12.","Buchung bei Überweisung der Kraftfahrzeugsteuer",null,"Anteile","Berechnungen",{"$f":"IF(AND(B111=\"2900\",B112=\"7030\",E111=\"2800\"),\"Die Konten sind richtig!\",\"Mindestens ein Konto ist falsch!\")","v":"Mindestens ein Konto ist falsch!"}]
[null,null,null,"neues Jahr",null,{"$f":"IF(AND(D111=660,D112=60,G111=720),\"Die Beträge sind richtig!\",\"Mindestens ein Betrag ist falsch!\")","v":"Mindestens ein Betrag ist falsch!"}]
[null,null,null,"altes Jahr",null,{"$f":"IF(AND(F107=\"Die Konten sind richtig!\",F108=\"Die Beträge sind richtig!\"),\"Alles richtig!\",\"Es sind noch Fehler vorhanden!\")","v":"Es sind noch Fehler vorhanden!"}]
[15,"Soll","Konto","€","Haben","Konto","€"]
["Buchungssatz","",{"$f":"IF(B111=\"\",\"\",VLOOKUP(B111,Kontenplan!$A$4:$B$20,2))","v":""},null,"",{"$f":"IF(E111=\"\",\"\",VLOOKUP(E111,Kontenplan!$A$4:$B$20,2))","v":""}]
[null,"",{"$f":"IF(B112=\"\",\"\",VLOOKUP(B112,Kontenplan!A4:B20,2))","v":""}]
["01.01.","Buchung im neuen Geschäftsjahr",null,"Kfz.-Steuer für das neue Geschäftsjahr",null,{"$f":"IF(AND(B117=\"7030\",E117=\"2900\"),\"Die Konten sind richtig!\",\"Mindestens ein Konto ist falsch!\")","v":"Mindestens ein Konto ist falsch!"}]
[null,null,null,null,null,{"$f":"IF(AND(D117=660,G117=660),\"Die Beträge sind richtig!\",\"Mindestens ein Betrag ist falsch!\")","v":"Mindestens ein Betrag ist falsch!"}]
[null,null,null,null,null,{"$f":"IF(AND(F113=\"Die Konten sind richtig!\",F114=\"Die Beträge sind richtig!\"),\"Alles richtig!\",\"Es sind noch Fehler vorhanden!\")","v":"Es sind noch Fehler vorhanden!"}]
[16,"Soll","Konto","€","Haben","Konto","€"]
["Buchungssatz","",{"$f":"IF(B117=\"\",\"\",VLOOKUP(B117,Kontenplan!$A$4:$B$20,2))","v":""},null,"",{"$f":"IF(E117=\"\",\"\",VLOOKUP(E117,Kontenplan!$A$4:$B$20,2))","v":""}]
[]
[]
["Geschäfts- vorfall 7","Ein Kunde zahlt vereinbarungsgemäß die Zinsen für ein Darlehen von 12.12. bis 6.2. im voraus am 23.12. durch Banküberweisung. Darlehenssumme: 2.800,00 €, Zinssatz: 5,5%. Die Abgrenzung ist direkt vorzunehmen."]
[]
["12.12.","Buchung beim Eingang der Zinsen",null,"Zins- berechnungen",null,{"$f":"IF(AND(B126=\"2800\",E126=\"4900\",E127=\"5710\"),\"Die Konten sind richtig!\",\"Mindestens ein Konto ist falsch!\")","v":"Mindestens ein Konto ist falsch!"}]
[null,null,null,null,null,{"$f":"IF(AND(D126=23.1,G126=15.4,G127=7.7),\"Die Beträge sind richtig!\",\"Mindestens ein Betrag ist falsch!\")","v":"Mindestens ein Betrag ist falsch!"}]
[null,null,null,null,null,{"$f":"IF(AND(F122=\"Die Konten sind richtig!\",F123=\"Die Beträge sind richtig!\"),\"Alles richtig!\",\"Es sind noch Fehler vorhanden!\")","v":"Es sind noch Fehler vorhanden!"}]
[17,"Soll","Konto","€","Haben","Konto","€"]
["Buchungssatz","",{"$f":"IF(B126=\"\",\"\",VLOOKUP(B126,Kontenplan!$A$4:$B$20,2))","v":""},null,"",{"$f":"IF(E126=\"\",\"\",VLOOKUP(E126,Kontenplan!$A$4:$B$20,2))","v":""}]
[null,null,null,null,"",{"$f":"IF(E127=\"\",\"\",VLOOKUP(E127,Kontenplan!$A$4:$B$20,2))","v":""},7.7]
["01.01.","Buchung im neuen Geschäftsjahr",null,"Zinsanteil für das neue Geschäftsjahr",null,{"$f":"IF(AND(B132=\"4900\",E132=\"5710\"),\"Die Konten sind richtig!\",\"Mindestens ein Konto ist falsch!\")","v":"Mindestens ein Konto ist falsch!"}]
[null,null,null,null,null,{"$f":"IF(AND(D132=15.4,G132=15.4),\"Die Beträge sind richtig!\",\"Mindestens ein Betrag ist falsch!\")","v":"Mindestens ein Betrag ist falsch!"}]
[null,null,null,null,null,{"$f":"IF(AND(F128=\"Die Konten sind richtig!\",F129=\"Die Beträge sind richtig!\"),\"Alles richtig!\",\"Es sind noch Fehler vorhanden!\")","v":"Es sind noch Fehler vorhanden!"}]
[18,"Soll","Konto","€","Haben","Konto","€"]
["Buchungssatz","",{"$f":"IF(B132=\"\",\"\",VLOOKUP(B132,Kontenplan!$A$4:$B$20,2))","v":""},null,"",{"$f":"IF(E132=\"\",\"\",VLOOKUP(E132,Kontenplan!$A$4:$B$20,2))","v":""}]
[]
[]
["Geschäfts- vorfall 8","Die Gebäudeversicherung wird am 01.06. für ein Jahr im voraus durch Banküberweisung gezahlt 1.320,00 €."]
[]
["01.06.","Buchung bei Überweisung der Versicherung",null,null,1320,{"$f":"IF(AND(B141=\"6900\",E141=\"2800\"),\"Die Konten sind richtig!\",\"Mindestens ein Konto ist falsch!\")","v":"Mindestens ein Konto ist falsch!"}]
[null,null,null,null,null,{"$f":"IF(AND(D141=1320,G141=1320),\"Die Beträge sind richtig!\",\"Mindestens ein Betrag ist falsch!\")","v":"Mindestens ein Betrag ist falsch!"}]
[null,null,null,null,null,{"$f":"IF(AND(F137=\"Die Konten sind richtig!\",F138=\"Die Beträge sind richtig!\"),\"Alles richtig!\",\"Es sind noch Fehler vorhanden!\")","v":"Es sind noch Fehler vorhanden!"}]
[19,"Soll","Konto","€","Haben","Konto","€"]
["Buchungssatz","",{"$f":"IF(B141=\"\",\"\",VLOOKUP(B141,Kontenplan!$A$4:$B$20,2))","v":""},null,"",{"$f":"IF(E141=\"\",\"\",VLOOKUP(E141,Kontenplan!$A$4:$B$20,2))","v":""}]
[]
["31.12.","Buchung zum Jahresabschluss",null,"Versicherungs- anteil für das neue Jahr","Berechnungen",{"$f":"IF(AND(B147=\"2900\",E147=\"6900\"),\"Die Konten sind richtig!\",\"Mindestens ein Konto ist falsch!\")","v":"Mindestens ein Konto ist falsch!"}]
[null,null,null,null,null,{"$f":"IF(AND(D147=550,G147=550),\"Die Beträge sind richtig!\",\"Mindestens ein Betrag ist falsch!\")","v":"Mindestens ein Betrag ist falsch!"}]
[null,null,null,null,null,{"$f":"IF(AND(F143=\"Die Konten sind richtig!\",F144=\"Die Beträge sind richtig!\"),\"Alles richtig!\",\"Es sind noch Fehler vorhanden!\")","v":"Es sind noch Fehler vorhanden!"}]
[20,"Soll","Konto","€","Haben","Konto","€"]
["Buchungssatz","",{"$f":"IF(B147=\"\",\"\",VLOOKUP(B147,Kontenplan!$A$4:$B$20,2))","v":""},null,"",{"$f":"IF(E147=\"\",\"\",VLOOKUP(E147,Kontenplan!$A$4:$B$20,2))","v":""}]
[]
["01.01.","Buchung im neuen Geschäftsjahr",null,"Versicherungs- anteil für das neue Jahr",null,{"$f":"IF(AND(B153=\"6900\",E153=\"2900\"),\"Die Konten sind richtig!\",\"Mindestens ein Konto ist falsch!\")","v":"Mindestens ein Konto ist falsch!"}]
[null,null,null,null,null,{"$f":"IF(AND(D153=550,G153=550),\"Die Beträge sind richtig!\",\"Mindestens ein Betrag ist falsch!\")","v":"Mindestens ein Betrag ist falsch!"}]
[null,null,null,null,null,{"$f":"IF(AND(F149=\"Die Konten sind richtig!\",F150=\"Die Beträge sind richtig!\"),\"Alles richtig!\",\"Es sind noch Fehler vorhanden!\")","v":"Es sind noch Fehler vorhanden!"}]
[21,"Soll","Konto","€","Haben","Konto","€"]
["Buchungssatz","",{"$f":"IF(B153=\"\",\"\",VLOOKUP(B153,Kontenplan!$A$4:$B$20,2))","v":""},null,"",{"$f":"IF(E153=\"\",\"\",VLOOKUP(E153,Kontenplan!$A$4:$B$20,2))","v":""}]

{"sheet":"Kontenplan","index":2,"n_rows":20,"n_cols":2,"rows_kept":20,"cut":false,"hidden":false,"merged":[]}
[null,"Kontenplan"]
[]
["Nr.","Konto"]
["2600","Vorsteuer"]
["2690","Sonstige Forderungen"]
["2800","Kreditinstitute/Bank"]
["2880","Kasse"]
["2900","Aktive Rechnungsabgrenzung"]
["4800","Umsatzsteuer"]
["4890","Sonstige Verbindlichkeiten"]
["4900","Passive Rechnungsabgrenzung"]
["5400","Mieterträge"]
["5710","Zinserträge"]
["6150","Vertriebsprovision"]
["6160","Fremdinstandhaltung"]
["6700","Mietaufwendungen"]
["6710","Leasingaufwendungen"]
["6900","Versicherungsbeiträge"]
["7030","Kraftfahrzeugsteuer"]
["7510","Zinsaufwendungen"]